Cogmind - Beta 10.2 *** ADVENTURER MODE // 2021.09.18 @ 18:12:55 Player: Departed Result: Destroyed by G-34 Mercenary with Small Laser Performance ------------- Evolutions (1) 500 Regions Visited (4) 800 Robots Destroyed (73) 365 Value Destroyed (1776) 1776 Prototype IDs (1) 20 Alien Tech Used (0) 0 Bonus (60) 60 TOTAL SCORE: 3521 Bonus ------- High Alert Combat Kills 60 Cogmind --------- Core Integrity 0/400 Matter 282/300 Energy 265/265 System Corruption 0% Temperature Cool (6) Movement Walking (150) Ox1 Location -9/Storage Parts ------- > --- POWER (1) -------- Improved Ion Engine > --- PROPULSION (2) --- Aluminum Leg Aluminum Leg > --- UTILITY (4) ------ Large Storage Unit Weight Redist. System Visual Processing Unit Signal Interpreter > --- WEAPON (2) ------- Heavy Assault Rifle Heavy Assault Rifle > --- INVENTORY (10) --- Light Ion Engine Improved Ion Engine Aluminum Leg Aluminum Leg Small Laser Heavy Assault Rifle Peak State ------------ > --- POWER ------------ Improved Ion Engine > --- PROPULSION ------- Aluminum Leg Aluminum Leg > --- UTILITY ---------- Large Storage Unit Weight Redist. System Visual Processing Unit Signal Interpreter > --- WEAPON ----------- Improved EM Shotgun Heavy Assault Rifle > --- INVENTORY -------- Light Ion Engine Aluminum Leg Aluminum Leg Aluminum Leg Particle Gun Light Assault Rifle Mini Grenade Launcher Mining Laser [Rating: 16] Favorites ----------- Power Improved Ion Engine Engine Improved Ion Engine Propulsion Aluminum Leg Leg Aluminum Leg Utility Visual Processing Unit Device Weight Redist. System Storage Large Storage Unit Processor Visual Processing Unit Weapon Light Assault Rifle Energy Gun Medium Laser Ballistic Gun Light Assault Rifle Launcher Mini Grenade Launcher Special Weapon Mining Laser Build | -11 -10 -10 -9 -9 ------- Run | Scr Mat Min Mat Sto Slots Evolved 2 | . . . 2 . Power . | . . . . . Propulsion . | . . . . . Utility 2 | . . . 2 . Weapon . | . . . . . Parts Attached 57 | 6 18 . 8 25 Power 9 | 1 2 . 1 5 Engine 9 | 1 2 . 1 5 Core . | . . . . . Reactor . | . . . . . Propulsion 15 | 2 6 . 2 5 Treads . | . . . . . Leg 15 | 2 6 . 2 5 Wheel . | . . . . . Hover . | . . . . . Flight . | . . . . . Utility 6 | 1 2 . 1 2 Device 1 | . . . . 1 Storage 2 | 1 1 . . . Processor 3 | . 1 . 1 1 Hackware . | . . . . . Protection . | . . . . . Artifact . | . . . . . Weapon 27 | 2 8 . 4 13 Energy Gun 10 | 1 4 . 2 3 Energy Cannon . | . . . . . Ballistic Gun 14 | 1 4 . 2 7 Ballistic Cannon . | . . . . . Launcher 2 | . . . . 2 Special Weapon 1 | . . . . 1 Impact Weapon . | . . . . . Slashing Weapon . | . . . . . Piercing Weapon . | . . . . . Special Melee Weapon . | . . . . . Unidentified Prototypes 1 | . . . . 1 Parts Lost 18 | . 4 . 2 12 Power 4 | . 1 . 1 2 Propulsion 4 | . 1 . 1 2 Utility . | . . . . . Weapon 10 | . 2 . . 8 Highest Loss Streak 11 | . 2 . 2 11 Average Slot Usage (%) 93 | . 94 100 86 93 Engine 11 | . 13 14 10 9 Leg 24 | . 28 28 21 21 Device 2 | . . . . 6 Storage 12 | . 14 14 11 11 Processor 18 | . 10 14 22 24 Energy Gun 5 | . 7 14 6 1 Ballistic Gun 17 | . 19 14 15 16 Naked Turns . | . . . . . Heaviest Build 29 | 10 24 24 29 29 Greatest Support 26 | 20 20 20 20 26 Greatest Overweight (x) 2 | . 1 1 2 1 Average Overweight (x) . | . . 1 1 . Largest Inventory Capacity 10 | 6 10 10 10 10 Average Capacity 8 | 5 6 10 10 10 Most Carried 9 | 2 6 7 8 9 Average Carried 5 | . 4 6 6 5 Final Capacity 10 | 6 10 10 10 10 Final Carried 7 | . 6 7 7 6 Class Distribution -------------------- 81% | Scavenger-Mutant 18% | Mutant Dominant Class ---------------- Scavenger-Mutant | -10/Materials Scavenger-Mutant | -10/Mines Scavenger-Mutant | -9/Materials Scavenger-Mutant | -9/Storage Resources | -11 -10 -10 -9 -9 ----------- Run | Scr Mat Min Mat Sto Matter Collected 1212 | 141 365 8 117 581 Remotely . | . . . . . Salvage Created 2606 | . 706 116 266 1518 Parts 166 | . 47 11 13 95 Haulers Intercepted 1 | . . . . 1 Recyclers Shooed 9 | . 1 . 1 7 Parts Field Recycled . | . . . . . Retrieved Matter . | . . . . . Parts Self-Destructed . | . . . . . Prevented . | . . . . . Kills | -11 -10 -10 -9 -9 ------- Run | Scr Mat Min Mat Sto Combat Hostiles Destroyed 54 | . 18 4 5 27 Guns 50 | . 18 4 5 23 AOE 4 | . . . . 4 Classes Destroyed 10 | . 4 1 2 3 Worker 4 | . . 1 . 3 Builder 2 | . . . . 2 Tunneler 1 | . . . 1 . Hauler 1 | . . . . 1 Recycler 6 | . 1 . . 5 Watcher 5 | . 3 . . 2 Swarmer 16 | . 7 3 . 6 Grunt 28 | . 11 1 2 14 Duelist 1 | . . . . 1 Sentry 9 | . . . 3 6 Best Kill Streak 9 | . 3 5 3 9 Combat Bots Only 7 | . 3 4 3 7 Max Kills in Single Turn 3 | . 2 1 1 3 Gunslinging 1 | . 1 . . . Exploded 2 | . . . . 2 Melee . | . . . . . Uniques/NPCs Destroyed . | . . . . . Combat | -11 -10 -10 -9 -9 -------- Run | Scr Mat Min Mat Sto Damage Taken 2671 | . 664 105 348 1554 Core 519 | . 85 28 71 335 Absorbed by Shields . | . . . . . Core Remaining (%) 77 | 100 . 54 . . Volleys Fired 213 | . 71 8 21 113 Largest 2 | . 2 2 2 2 Hottest 76 | . 70 60 70 76 Shots Fired 366 | . 133 16 42 175 Gun 364 | . 133 16 42 173 Cannon . | . . . . . Launcher 2 | . . . . 2 Special . | . . . . . Kinetic 260 | . 81 8 25 146 Thermal 79 | . 47 . 11 21 Explosive 2 | . . . . 2 Electromagnetic 25 | . 5 8 6 6 Robot Hit Streak 28 | . 18 11 15 28 Robot Miss Streak 3 | . 3 1 1 2 Penetration Max . | . . . . . Secondary Targets 8 | . 3 2 1 2 Max Gunslinging Chain 1 | . 1 1 1 1 Shots Hit Robots 279 | . 87 13 37 142 Core Hits 123 | . 39 8 11 65 Critical Hits 2 | . 1 . . 1 Critical Kills 1 | . . . . 1 Critical Parts Destroyed 1 | . 1 . . . Melee Attacks . | . . . . . Impact . | . . . . . Slashing . | . . . . . Piercing . | . . . . . Sneak Attacks . | . . . . . Combat Hostiles . | . . . . . Follow-up Attacks . | . . . . . Damage Inflicted 4059 | . 931 119 453 2556 Guns 3518 | . 910 117 453 2038 Cannons . | . . . . . Explosions 529 | . 21 . . 508 Melee . | . . . . . Ramming 12 | . . 2 . 10 Kinetic 2405 | . 470 36 233 1666 Thermal 997 | . 395 . 140 462 Explosive 334 | . . . . 334 Electromagnetic 311 | . 66 81 80 84 Impact . | . . . . . Slashing . | . . . . . Piercing . | . . . . . Highest Corruption . | . . . . . Average Corruption . | . . . . . Corruption Purged . | . . . . . Overload Shots . | . . . . . Overflow Damage 103 | . . . . 103 Projectiles . | . . . . . Explosions 103 | . . . . 103 Melee . | . . . . . Knockbacks . | . . . . . Impact . | . . . . . Kinetic . | . . . . . Secondary . | . . . . . Self-Inflicted Damage 5 | . . 1 . 4 Shots . | . . . . . Rammed 3 | . . 1 . 2 Targets Rammed 4 | . . 1 . 3 Kicked 1 | . . . . 1 Crushed . | . . . . . Highest Temperature 182 | . 168 40 161 182 Average Temperature 54 | . 49 16 62 69 Received Heat Transfer 1086 | . 246 . 159 681 Siege Activations . | . . . . . Robots Corrupted . | . . . . . Combat Hostiles . | . . . . . Parts Fried . | . . . . . Impact Corruptions . | . . . . . Robots Melted . | . . . . . Combat Hostiles . | . . . . . Parts Melted 6 | . 3 . 2 1 Heat Transferred 2470 | . 1160 . 407 903 Parts Sabotaged . | . . . . . Parts Stolen . | . . . . . Parts Stripped . | . . . . . Power Chain Reactions 3 | . 1 . . 2 Missiles Intercepted . | . . . . . Alert | -11 -10 -10 -9 -9 ------- Run | Scr Mat Min Mat Sto Peak Influence 584 | . 249 150 195 584 Initial 70 | . . 24 49 70 Average 203 | . 120 125 115 316 Maximum Alert Level 2 | . 1 . . 2 Low Security (%) 60 | 100 82 100 100 25 Level 1 22 | . 17 . . 36 Level 2 16 | . . . . 37 Level 3 . | . . . . . Level 4 . | . . . . . Level 5 . | . . . . . High Security . | . . . . . Max Security . | . . . . . Squads Dispatched 14 | . 5 1 1 7 Investigation 8 | . 5 1 . 2 Extermination . | . . . . . Reinforcement 2 | . . . 1 1 Assault . | . . . . . Garrison 4 | . . . . 4 Intercept . | . . . . . Construction Impeded . | . . . . . Haulers Reinforced . | . . . . . Stealth | -11 -10 -10 -9 -9 --------- Run | Scr Mat Min Mat Sto Distress Signals 2 | . 1 . . 1 Communications Jammed . | . . . . . Distress Signals . | . . . . . Times Spotted 64 | . 21 4 5 34 Peak Tracking Total 5 | . 3 3 3 5 Tactical Retreats 1 | . . . . 1 Traps | -11 -10 -10 -9 -9 ------- Run | Scr Mat Min Mat Sto Traps Triggered 4 | . 3 . . 1 Indirectly . | . . . . . Trap Hack Attempts . | . . . . . Triggered . | . . . . . Disarmed . | . . . . . Reprogrammed . | . . . . . Reused . | . . . . . Traps Extracted . | . . . . . Installed . | . . . . . Triggered . | . . . . . Machines | -11 -10 -10 -9 -9 ---------- Run | Scr Mat Min Mat Sto Machines Disabled 6 | . 1 . . 5 Max in Single Turn 2 | . 1 . . 2 Machines Sabotaged . | . . . . . Garrisons Compromised . | . . . . . Overloaded Fab Kills . | . . . . . Fab Network Shutdowns . | . . . . . Hacking | -11 -10 -10 -9 -9 --------- Run | Scr Mat Min Mat Sto Machines Accessed 11 | . 4 1 2 4 Terminals 8 | . 3 1 2 2 Fabricators . | . . . . . Repair Stations 3 | . 1 . . 2 Recycling Units . | . . . . . Scanalyzers . | . . . . . Garrison Access . | . . . . . Total Hacks 34 | . 11 2 7 14 Successful 16 | . 2 1 2 11 Failed 18 | . 9 1 5 3 Catastrophic 3 | . 2 . . 1 Database Lockouts . | . . . . . Manual . | . . . . . Terminals 23 | . 8 2 7 6 Fabricators . | . . . . . Repair Stations 11 | . 3 . . 8 Recycling Units . | . . . . . Scanalyzers . | . . . . . Garrison Access . | . . . . . Terminal Hacks 6 | . . 1 2 3 Emergency Access Points 2 | . . . 1 1 Scanalyzer Index 1 | . . . 1 . Maintenance Status 1 | . . . . 1 Assault Status 1 | . . 1 . . Zone Layout 1 | . . . . 1 Fabricator Hacks . | . . . . . Repair Station Hacks 10 | . 2 . . 8 Scan Component 5 | . 1 . . 4 Repair 5 | . 1 . . 4 Recycling Unit Hacks . | . . . . . Scanalyzer . | . . . . . Garrison Access Hacks . | . . . . . Unauthorized Hacks . | . . . . . Terminals . | . . . . . Fabricators . | . . . . . Repair Stations . | . . . . . Recycling Units . | . . . . . Scanalyzers . | . . . . . Garrison Access . | . . . . . Data Cores Recovered . | . . . . . Used . | . . . . . Hacking Detections 10 | . 3 1 2 4 Full Trace Events 7 | . 3 1 1 2 Feedback Events . | . . . . . Feedback Blocked . | . . . . . Robot Schematics Acquired . | . . . . . Robots Built . | . . . . . Matter . | . . . . . Time . | . . . . . Total Robot Build Rating . | . . . . . Part Schematics Acquired . | . . . . . Parts Built . | . . . . . Matter . | . . . . . Time . | . . . . . Total Part Build Rating . | . . . . . Parts Repaired 5 | . 1 . . 4 Time 135 | . 13 . . 122 Parts Recycled . | . . . . . Recycled Matter . | . . . . . Retrieved Matter . | . . . . . Retrieved Components . | . . . . . Parts Scanalyzed . | . . . . . Part Schematics Acquired . | . . . . . Parts Damaged . | . . . . . Bothacking | -11 -10 -10 -9 -9 ------------ Run | Scr Mat Min Mat Sto Used RIF Installer . | . . . . . Robots Hacked . | . . . . . Non-combat . | . . . . . Combat . | . . . . . Robot Hacks Applied . | . . . . . Relay Couplers Released . | . . . . . Robots Rewired . | . . . . . Allies Hacked . | . . . . . Hacks Repelled . | . . . . . Allies | -11 -10 -10 -9 -9 -------- Run | Scr Mat Min Mat Sto Total Allies . | . . . . . Largest Group . | . . . . . Highest-Rated Group . | . . . . . Highest-Rated Ally . | . . . . . Total Orders . | . . . . . Ally Attacks . | . . . . . Total Damage . | . . . . . Kills . | . . . . . Allies Corrupted . | . . . . . Allies Melted . | . . . . . Intel | -11 -10 -10 -9 -9 ------- Run | Scr Mat Min Mat Sto Robot Analysis Total . | . . . . . Derelict Logs Recovered . | . . . . . Drone Launches . | . . . . . Drone Recoveries . | . . . . . Exploration | -11 -10 -10 -9 -9 ------------- Run | Scr Mat Min Mat Sto Turns Passed 2611 | 47 1010 81 333 1140 Spaces Moved 1356 | 35 621 38 165 497 Core 6 | 6 . . . . Treads . | . . . . . Legs 1350 | 29 621 38 165 497 Wheels . | . . . . . Hover . | . . . . . Flight . | . . . . . Fastest Speed 50 | 50 120 150 150 120 Average Speed 135 | 108 122 150 151 148 Slowest Speed 180 | 120 150 150 180 150 Overloaded Moves . | . . . . . Propulsion Burnouts . | . . . . . Robots Hopped . | . . . . . Cave-ins Triggered . | . . . . . Exploration Rate (%) 34 | 4 89 5 13 59 Regions Visited 4 Branch Regions 2 Pre-discovered Areas . | . . . . . Known Exits Taken 1 | . . . 1 . Unknown Exits Taken 3 | 1 1 1 . . Scrap Searched . | . . . . . Spaces Dug . | . . . . . Terrain Destroyed 17 | . . . . 17 Melee . | . . . . . Projectile . | . . . . . AOE 17 | . . . . 17 Terrain Rammed . | . . . . . Walls Destroyed . | . . . . . Machines Disabled . | . . . . . Actions | -11 -10 -10 -9 -9 --------- Run | Scr Mat Min Mat Sto Total 1774 | 42 749 47 208 728 Wait 97 | . 21 . 6 70 Move 1352 | 34 620 37 164 497 Hop . | . . . . . Pick Up 36 | 2 11 1 6 16 Fast Attach 8 | 4 2 . . 2 Attach 25 | 2 4 . 3 16 Detach 1 | . . . . 1 Swap 24 | . 12 . 5 7 Drop 14 | . 8 . 3 3 Fire 213 | . 71 8 21 113 Melee . | . . . . . Ram . | . . . . . Kick 4 | . . 1 . 3 Crush . | . . . . . Escape Stasis . | . . . . . Rewire . | . . . . . Trap . | . . . . . Miscellaneous . | . . . . . Route ------- -11/Scrapyard -10/Materials (discovered 4 exits: *Mat x3 / *Min) -10/Mines -9/Materials (discovered 2 exits: *Min / *Sto) -9/Storage History --------- Turn | Location | Event 21 | -11/Scrapyard | Discovered new exit (range 16) 48 | -11/Scrapyard | Entered Materials 264 | -10/Materials | Discovered new exit (range 11) 308 | -10/Materials | Build established: Mutant 389 | -10/Materials | Discovered new exit (range 5) 702 | -10/Materials | Repaired Lgt. Assault Rifle 772 | -10/Materials | Discovered new exit (range 8) 799 | -10/Materials | Build established: Scavenger-Mutant 900 | -10/Materials | Discovered new exit (range 9) 1058 | -10/Materials | Entered Mines 1075 | -10/Mines | Discovered new exit (range 10) 1119 | -10/Mines | Met a Derelict bent on vengeance 1139 | -10/Mines | Entered Materials 1139 | -9/Materials | Evolved 2 slots: Utility x2 1142 | -9/Materials | Discovered new exit (range 8) 1154 | -9/Materials | Identified exit to Storage 1340 | -9/Materials | Discovered new exit (range 11) 1371 | -9/Materials | Identified exit to Mines 1472 | -9/Materials | Entered Storage 1527 | -9/Storage | Repaired Imp. Ion Engine 1596 | -9/Storage | Garrison activated, responded to threat 1777 | -9/Storage | Repaired Hvy. Assault Rifle 2024 | -9/Storage | Garrison activated, responded to threat 2041 | -9/Storage | Repaired Aluminum Leg 2056 | -9/Storage | Core integrity fell below 50% 2087 | -9/Storage | Repaired Hvy. Assault Rifle 2141 | -9/Storage | Core integrity fell below 20% 2179 | -9/Storage | Destroyed 7 combat bots 2182 | -9/Storage | Lost 11 parts (2p2n7w) 2612 | -9/Storage | Destroyed by G-34 Mercenary with Small Laser Last Messages --------------- 02358_ Connecting with Door Terminal... 02361_ R-06 Scavenger collects Lgt. Ion Engine. 02364_ K-01 Serf collects debris. 02394_ Acquired 46 matter. 02418_ Slammed into A-02 Transporter. 02429_ K-01 Serf destroyed. 02433_ Acquired 6 matter. 02437_ U-05 Engineer builds a Door. 02489_ K-01 Serf collects debris. 02510_ Acquired 6 matter. 02540_ Connecting with Terminal... >>Access(Emergency) Found 1 emergency access door: (55,38) Map updated. 02576_ Connecting with Terminal... 02576_ ALERT: Suspicious activity at Terminal S003. Dispatching Investigation squad. 02608_ G-34 Mercenary destroyed. 02608_ Switching to secondary target: G-34 Mercenary. Map ----- +----------------------------------------------------+ | ???????????????????????????????????????? | | ???????????????????????????????????????? | | ?????????????????????????????????? | | ?????????????????????????????????? | | ?????????????????????????????????? | | ###?????????????????????????????????? | | ##########???????????????????????????? | | # #???????????????????????????? | | # """"" #???????????????????????????? | | # "???" #???????????????????????????? | | + "??"" #????????########???????????? | | # ""??" #????????# % #???????????? | | # " ??" ##???????# #???????????? | | # """"" # ######## #???????????? | | # # # #???????????? | | # #" """ + #???????????? | | #####+######T """ # #???????????? | | ##### #????#" """ # ! #???????????? | | %%#????# # #???????????? | | ##### #????# """ # #???????????? | | ????# #????# """ # #???????????? | | ????# #????# """ # #????#####??? | | #####%#????# # #??? #??? | | ## #????#####+#### #??? #??? | | ## ########!% #####+##### #??? | | #% % *g% @ # """ #??? | | %+% % k/ """ #??? | | #% % o k k # """ #??? | | #####+##### % #######^ ##########? | | #???# ???## % ##?????# #?? ?? | | #???T ????# #??????# #?? """ #? | | ####??? ???#% #??????# #? """ #? | | ##????? ???# #??????# # """ #? | | #?????######?# #??????+ + """ # | | #??????#"""#?# #????? # # """ #? | | #??????#"Y"#?# #????? # + #? | | #??#####" "### #????"?# # #? | | #??# # #???##?# # #? | | ##??# """ """ # ######## #?######### | | ????# """ """ # # ##### # | | ????# """ """ + # + """# | | ????# """ # # # """# | | ????# """ ##+##+###### # """# | | ????# # ## # """# | | ????# # =## ####### """# | | ????####" "#### ## #?????# # | | ???????#"R"#??# + #?????####### | | ???????#"""#??# """ """ ####???????????? | | ???????#####??# """ """ #??????????????? | | ??????????????# """ """ #??????????????? | +----------------------------------------------------+ Best States ------------- Heat Dissipation 28 Energy Generation 12 Energy Capacity 265 Matter Stores 300 Matter Capacity 300 Sight Range 18 Terrain Scan Density 10 Additional Mass Support 6 Resistance: KI 20 Resistance: TH 20 Resistance: EX 20 Resistance: EM 20 Resistance: I 20 Resistance: S 20 Resistance: P 20 Evasion (%) 40 Offensive Hacking 10 Item Schematics ----------------- None Robot Schematics ------------------ None Fabricated ------------ Nothing Alien Tech Used ----------------- None Achievements -------------- Party Time Challenges ------------ None Game ------ Seed WaveIntegratedGenerator Manual? 0 Play Time 00:30:21 Cumulative 12.4 hours Start 2021.09.18 @ 17:45:37 End 2021.09.18 @ 18:12:55 Sessions 1 Manual Loads 0 Difficulty Adventurer Special Mode None Game No. 20 Rogue 0 Adventurer 20 Explorer 0 Win Type - Total 0 Types 0/0/0/0/0/0/0/0/0 Lore% 9 Gallery% 23 Achievement% 16 Wizard Run 0 Options --------- ASCII 0 Keyboard 0 Movement Mouse Keybinds 0 Fullscreen 1 Font 18/TerminusBold Map View 76x50 Tactical HUD 1 Map Filters NONE Filters NONE Steam 1 RUN: d154323d-388d-4304-874d-75852cdcdbd1